bitfinex/quotes_SOLUSD_20250728
["timestamp","ask_amount","ask_price","bid_price","bid_amount"]
[1753690656886,6.50474965,192.08,192.07,0.06]
[1753690657097,11.71091374,192.08,192.07,0.06]
[1753690670611,5.80474965,192.1,192.07,0.06]
[1753690670798,5.2053511,192.11,192.07,0.65]
[1753690671004,5.20516426,192.12,192.08,6.39474965]
[1753690671218,36.6,192.13,192.09,6.39474965]
[1753690671506,0.03,192.14,192.11,5.80474965]
[1753690671675,0.03,192.14,192.12,0.59]
[1753690671878,0.03,192.14,192.12,6.39474965]
[1753690672077,0.03,192.14,192.13,0.59]
[1753690672479,0.03,192.14,192.13,6.39474965]
[1753690673217,0.03,192.14,192.13,5.80474965]
[1753690673994,0.03,192.14,192.1,31.80474965]
[1753690674198,0.03,192.14,192.12,0.59]
[1753690674896,0.03,192.14,192.12,6.39474965]
[1753690675791,0.03,192.14,192.12,0.59]
[1753690675998,0.03,192.14,192.11,5.80474965]
[1753690676199,0.72,192.14,192.11,5.80474965]
[1753690676788,0.72,192.14,192.1,62.58]
[1753690677105,0.69,192.13,192.1,62.58]
[1753690677287,0.69,192.13,192.1,68.38474965]
[1753690677682,5.80474965,192.13,192.07,5.86474965]
[1753690677887,5.2053511,192.11,192.07,42.44474965]
[1753690678597,5.2053511,192.11,192.07,43.03474965]
[1753690679715,5.2053511,192.11,192.07,37.23]
[1753690679882,5.2053511,192.11,192.07,43.03474965]
[1753690681292,0.03,192.14,192.1,5.80474965]
[1753690681498,0.03,192.14,192.12,5.80474965]
[1753690681900,0.72,192.14,192.11,5.80474965]
[1753690682092,5.92458974,192.14,192.1,34.38474965]
[1753690682297,0.03,192.14,192.13,5.80474965]
[1753690682612,0.03,192.14,192.13,6.39474965]
[1753690682796,0.03,192.14,192.13,5.80474965]
[1753690684288,0.03,192.14,192.13,6.39474965]
[1753690684518,0.03,192.14,192.13,6.67907279]
[1753690685085,0.03,192.14,192.13,23.46375676]
[1753690685319,0.03,192.14,192.13,60.04375676]
[1753690686110,0.03,192.14,192.13,65.248566]
[1753690687589,0.03,192.14,192.13,60.04375676]
[1753690688093,0.03,192.14,192.13,65.248566]
[1753690689620,0.03,192.14,192.13,153.548566]
[1753690691096,0.03,192.18,192.17,42.78468397]
[1753690691300,0.03,192.18,192.17,173.75375676]
[1753690691506,8.51935397,192.22,192.18,0.28432314]
[1753690691727,8.51935397,192.22,192.21,22.87375676]
[1753690691893,8.51935397,192.22,192.21,147.73375676]
[1753690692225,8.51935397,192.22,192.21,148.32375676]
[1753690692903,0.03,192.22,192.21,65.78904211]
[1753690693220,0.03,192.27,192.25,26.0]
[1753690693518,0.03,192.27,192.26,59.43375676]
[1753690693821,0.03,192.27,192.26,65.22504667]
[1753690694404,0.03,192.27,192.26,60.02375676]
[1753690695028,0.03,192.27,192.26,59.43375676]
[1753690698129,0.03,192.27,192.26,60.02375676]
[1753690698535,0.03,192.27,192.26,148.32375676]
[1753690698838,0.03,192.27,192.26,153.52504667]
[1753690699004,0.03,192.27,192.26,148.32375676]
[1753690699622,0.03,192.27,192.26,147.73375676]
[1753690701333,0.03,192.27,192.26,153.52504667]
[1753690701911,0.03,192.27,192.26,159.88494667]
[1753690702113,0.03,192.27,192.26,161.50864667]
[1753690704414,0.03,192.27,192.26,124.94864667]
[1753690704613,0.03,192.27,192.26,161.48864667]
[1753690707621,0.03,192.27,192.26,119.15735676]
[1753690707955,0.03,192.27,192.26,155.69735676]
[1753690708639,0.72,192.27,192.26,136.88943362]
[1753690708943,0.72,192.27,192.26,173.42943362]
[1753690709151,0.72,192.27,192.26,36.54]
[1753690709362,0.72,192.27,192.24,5.80474965]
[1753690709569,0.72,192.27,192.21,42.34474965]
[1753690709570,5.80474965,192.26,192.21,42.34474965]
[1753690709751,5.80474965,192.24,192.2,36.54]
[1753690710066,6.49474965,192.23,192.19,36.54]
[1753690710222,0.69,192.22,192.19,36.54]
[1753690710654,5.20264294,192.21,192.19,36.54]
[1753690710854,0.69,192.2,192.19,36.82432314]
[1753690711161,0.69,192.23,192.2,17.06900711]
[1753690711364,0.69,192.23,192.21,42.34474965]
[1753690711958,0.69,192.22,192.21,42.62907279]
[1753690712263,0.69,192.22,192.21,36.82432314]
[1753690712559,0.19,192.22,192.21,36.82432314]
[1753690713624,5.39237228,192.22,192.17,5.80474965]
[1753690713826,5.80474965,192.2,192.14,5.86474965]
[1753690714027,5.80474965,192.19,192.15,53.32468397]
[1753690714246,5.80474965,192.2,192.16,0.28432314]
[1753690714658,0.69,192.19,192.16,0.28432314]
[1753690714824,0.69,192.19,192.15,53.32468397]
[1753690715037,5.20345509,192.18,192.15,36.54]
[1753690715425,0.69,192.17,192.15,36.54]
[1753690715835,0.69,192.16,192.15,36.82432314]
[1753690716164,5.89325203,192.19,192.15,42.62907279]
[1753690716656,0.69,192.19,192.15,42.62907279]
[1753690716832,5.80474965,192.21,192.15,42.62907279]
[1753690717033,0.69,192.18,192.15,42.62907279]
[1753690717233,0.69,192.18,192.17,0.06]
[1753690717541,0.69,192.21,192.17,36.6]
[1753690717722,0.69,192.2,192.17,36.6]
[1753690717926,0.69,192.19,192.17,36.6]
[1753690719263,5.20243175,192.22,192.18,0.28432314]
[1753690719264,6.49474965,192.22,192.18,0.28432314]
[1753690719555,0.69,192.21,192.18,0.28432314]
[1753690719744,0.69,192.2,192.18,0.28432314]
[1753690721150,11.00692732,192.23,192.18,0.28432314]
[1753690721353,0.69,192.21,192.19,36.54]
[1753690722340,0.69,192.2,192.19,36.54]
[1753690725369,11.69766328,192.2,192.17,124.92]
[1753690725554,6.49474965,192.19,192.17,124.92]
[1753690725872,0.69,192.18,192.17,88.36]
[1753690729358,0.66,192.22,192.17,88.36]
[1753690729539,6.46474965,192.21,192.17,88.36]
[1753690729743,6.46474965,192.21,192.18,36.56]
[1753690730060,5.80474965,192.21,192.18,36.56]
[1753690730248,0.66,192.21,192.18,36.56]
[1753690730641,6.46474965,192.21,192.18,36.56]
[1753690731244,0.66,192.2,192.18,36.56]
[1753690731665,11.667208,192.22,192.18,36.56]
[1753690732162,5.2021717,192.23,192.18,43.04474965]
[1753690732342,5.2021717,192.23,192.19,0.96432314]
[1753690732543,5.8621717,192.23,192.2,36.56]
[1753690733761,11.00687497,192.23,192.2,36.56]
[1753690733967,0.66,192.22,192.2,36.56]
[1753690734347,0.69,192.22,192.2,36.56]
[1753690734949,5.86264294,192.21,192.2,36.56]
[1753690735145,5.86264294,192.21,192.17,0.06]
[1753690735362,0.66,192.2,192.18,36.56]
[1753690735962,5.20264294,192.21,192.18,36.56]
[1753690735963,11.00739259,192.21,192.18,36.56]
[1753690736172,11.66739259,192.21,192.18,36.56]
[1753690737174,5.23245097,192.22,192.18,37.24]
[1753690737548,5.89245097,192.22,192.18,37.24]
[1753690737762,5.89245097,192.22,192.18,36.56]
[1753690737976,5.23245097,192.22,192.18,36.56]
[1753690738174,0.66,192.21,192.18,36.56]
[1753690738361,0.66,192.2,192.18,36.56]
[1753690738539,6.46474965,192.2,192.18,36.56]
[1753690738743,0.66,192.19,192.18,36.56]
[1753690738969,5.86318434,192.19,192.18,36.56]
[1753690739381,5.20318434,192.19,192.18,36.56]
[1753690739600,5.20298395,192.2,192.18,36.56]
[1753690739898,0.66,192.19,192.17,36.62]
[1753690740481,5.20298395,192.2,192.17,36.62]
[1753690740901,5.86298395,192.2,192.17,36.62]
[1753690741062,5.20298395,192.2,192.17,36.62]
[1753690741396,5.80474965,192.18,192.17,0.06]
[1753690742065,6.46474965,192.18,192.17,0.06]
[1753690743284,11.66820474,192.18,192.17,0.06]
[1753690744093,11.00820474,192.18,192.17,0.06]
[1753690744689,5.20345509,192.18,192.17,0.06]
[1753690745393,5.86345509,192.18,192.17,0.06]
[1753690749186,5.20345509,192.18,192.17,0.06]
[1753690750473,5.86345509,192.18,192.17,0.06]
[1753690750667,11.66820474,192.18,192.17,0.06]
[1753690755180,48.22820474,192.18,192.17,0.06]
[1753690756780,55.60347843,192.18,192.17,1e-08]
[1753690757299,52.10897469,192.18,192.17,1e-08]
[1753690760412,48.22820474,192.18,192.17,1e-08]
[1753690762099,5.20345509,192.18,192.17,1e-08]
[1753690763987,11.71820474,192.18,192.17,1e-08]
[1753690764684,15.20864338,192.18,192.17,1e-08]
[1753690766295,11.71820474,192.18,192.17,1e-08]
[1753690767091,15.20787008,192.18,192.17,1e-08]
[1753690767284,26.0,192.15,192.14,1e-08]
[1753690767489,26.0,192.15,192.13,0.06]
[1753690767490,68.36474965,192.15,192.13,1e-08]
[1753690767687,6.51474965,192.14,192.13,1e-08]
[1753690768620,5.80474965,192.14,192.13,1e-08]
[1753690768800,42.36474965,192.14,192.13,1e-08]
[1753690769196,47.569288,192.14,192.13,1e-08]
[1753690769621,5.20453835,192.14,192.13,1e-08]
[1753690769793,5.20372586,192.17,192.13,6.46474966]
[1753690769999,5.20372586,192.17,192.14,0.66]
[1753690770195,5.20372586,192.17,192.13,5.80474966]
[1753690770196,24.01779017,192.17,192.13,1e-08]
[1753690770395,18.21304052,192.17,192.13,1e-08]
[1753690770595,5.20372586,192.17,192.14,6.46474965]
[1753690770797,5.20318434,192.19,192.16,5.80474965]
[1753690771004,5.20318434,192.19,192.17,6.46474965]
[1753690771206,5.20264294,192.21,192.18,0.66]
[1753690771808,11.00739259,192.21,192.15,6.46474965]
[1753690772016,6.51474965,192.2,192.15,0.66]
[1753690772197,5.80474965,192.2,192.15,6.46474965]
[1753690772525,6.51474965,192.2,192.16,0.66]
[1753690772821,5.80474965,192.18,192.13,8.28650001]
[1753690773037,6.51474965,192.17,192.13,1e-08]
[1753690773196,5.20426749,192.15,192.13,1e-08]
[1753690773395,5.20426749,192.15,192.13,0.66000001]
[1753690773907,5.20426749,192.15,192.13,1e-08]
[1753690775323,5.20399666,192.16,192.13,1e-08]
[1753690776097,5.20399666,192.16,192.13,0.66000001]
[1753690776930,5.20399666,192.16,192.14,0.66]
[1753690777317,5.20399666,192.16,192.15,0.66]
[1753690777518,5.20372586,192.17,192.15,0.66]
[1753690777818,5.23372586,192.17,192.13,6.46474966]
[1753690778017,5.23372586,192.17,192.14,0.66]
[1753690779534,5.23372586,192.17,192.13,5.80474966]
[1753690779839,5.23372586,192.17,192.13,6.46474966]
[1753690780634,6.51474965,192.16,192.13,1e-08]
[1753690781804,11.71901714,192.15,192.13,1e-08]
[1753690782450,0.71,192.14,192.13,1e-08]
[1753690782943,6.51474965,192.14,192.13,1e-08]
[1753690783725,11.719288,192.14,192.13,1e-08]
[1753690784635,11.009288,192.14,192.13,1e-08]
[1753690784821,11.719288,192.14,192.13,1e-08]
[1753690785336,5.91453835,192.14,192.13,1e-08]
[1753690785539,11.719288,192.14,192.13,1e-08]
[1753690790235,11.669288,192.14,192.13,1e-08]
[1753690791114,44.95526643,192.14,192.1,1e-08]
[1753690791312,5.80474965,192.11,192.1,1e-08]
[1753690791644,42.36474965,192.11,192.09,1e-08]
[1753690791805,6.46474965,192.1,192.09,1e-08]
[1753690792541,47.57037172,192.1,192.09,1e-08]
[1753690792716,5.20562207,192.1,192.09,1e-08]
[1753690793427,5.86562207,192.1,192.09,1e-08]
[1753690793627,11.01037172,192.1,192.09,1e-08]
[1753690794225,5.20562207,192.1,192.09,1e-08]
[1753690795578,5.20562207,192.1,192.09,0.70000001]
[1753690796133,5.20562207,192.1,192.09,1e-08]
[1753690796532,5.86562207,192.1,192.09,1e-08]
[1753690796736,11.67037172,192.1,192.09,1e-08]
[1753690796921,48.23037172,192.1,192.09,1e-08]
[1753690798545,61.24442689,192.1,192.06,0.06]
[1753690798725,5.80474965,192.07,192.06,0.06]
[1753690798930,42.36474965,192.07,192.06,0.06]
[1753690799120,43.02474965,192.07,192.06,0.06]
[1753690799744,48.2311848,192.07,192.06,0.06]
[1753690799942,41.76643515,192.07,192.06,0.06]
[1753690800629,5.20643515,192.07,192.06,0.06]
[1753690800843,41.76643515,192.07,192.06,0.06]
[1753690801031,42.42643515,192.07,192.06,0.06]
[1753690801349,48.2311848,192.07,192.06,0.06]
[1753690801546,42.42643515,192.07,192.06,0.06]
[1753690801843,48.2311848,192.07,192.06,0.06]
[1753690803259,5.80474965,192.06,192.05,0.06]
[1753690803555,6.46474965,192.06,192.05,0.06]
[1753690803724,11.67145588,192.06,192.05,1e-08]
[1753690804943,26.0,192.03,192.01,0.06]
[1753690805152,42.36474965,192.02,192.0,343.99078348]
[1753690805449,6.46474965,192.01,192.0,343.99078348]
[1753690805755,11.67281173,192.01,192.0,343.99078348]
[1753690806327,20.50195762,192.01,192.0,343.99078348]
[1753690808141,11.67281173,192.01,192.0,343.99078348]
[1753690808452,11.67281173,192.01,192.0,290.45692391]
[1753690809156,48.23281173,192.01,192.0,290.45692391]
[1753690811159,48.23281173,192.01,192.0,232.09094144]
[1753690811367,48.23281173,192.01,192.0,204.36373128]
[1753690812244,47.57281173,192.01,192.0,204.36373128]
[1753690812762,48.23281173,192.01,192.0,204.36373128]
[1753690813132,47.57281173,192.01,192.0,204.36373128]
[1753690814040,48.23281173,192.01,192.0,204.36373128]
[1753690814658,48.25281173,192.01,192.0,204.36373128]
[1753690814975,48.25281173,192.01,192.0,177.93703381]
[1753690815157,48.25281173,192.01,192.0,149.00132118]
[1753690815351,48.25281173,192.01,192.0,91.2364563]
[1753690815656,48.25281173,192.01,192.0,63.45331739]
[1753690815958,48.25281173,192.01,192.0,10.40860801]
[1753690816142,48.25281173,192.01,192.0,1e-08]
[1753690817542,65.0374957,192.01,192.0,1e-08]
[1753690817771,71.12656849,192.01,192.0,1e-08]
[1753690817968,65.0374957,192.01,192.0,1e-08]
[1753690818175,70.84224535,192.01,192.0,1e-08]
[1753690818661,71.12656849,192.01,192.0,1e-08]
[1753690821077,35.03359844,191.97,191.91,0.68]
[1753690821279,5.80474965,191.92,191.89,0.68]
[1753690821485,26.0,191.94,191.89,0.68]
[1753690821486,5.80474965,191.9,191.89,0.68]
[1753690821649,5.21104742,191.9,191.89,0.68]
[1753690822752,11.01579707,191.9,191.89,0.68]
[1753690824059,47.59579707,191.9,191.89,0.68]
[1753690824866,47.59579707,191.9,191.85,94.20474965]
[1753690825065,5.80474965,191.89,191.86,0.68]
[1753690825268,5.80474965,191.89,191.85,0.1]
[1753690825269,36.58,191.88,191.87,0.68]
[1753690825982,41.79159057,191.88,191.87,0.68]
[1753690826282,41.79159057,191.88,191.87,0.18]
[1753690827679,41.79159057,191.88,191.84,13.46744965]
[1753690828399,41.79159057,191.88,191.85,5.80474965]
[1753690829674,41.79159057,191.88,191.86,0.41]
[1753690830391,41.79159057,191.88,191.84,13.46744965]
[1753690830599,41.79159057,191.88,191.85,0.41]
[1753690831088,41.79159057,191.88,191.84,13.46744965]
[1753690831272,41.79159057,191.88,191.85,6.21474965]
[1753690831475,5.21136621,191.89,191.86,6.21474965]
[1753690831788,41.79136621,191.89,191.86,6.21474965]
[1753690832589,5.21136621,191.89,191.86,6.21474965]
[1753690832884,5.21136621,191.89,191.86,0.41]
[1753690833086,5.21136621,191.89,191.86,6.21474965]
[1753690836204,5.21136621,191.89,191.86,5.80474965]
[1753690836493,11.69611586,191.89,191.85,5.80474965]
[1753690837268,6.48474965,191.88,191.84,7.6627]
[1753690837679,6.48474965,191.87,191.83,0.06]
[1753690837996,36.58,191.86,191.83,5.86474965]
[1753690838175,36.58,191.86,191.83,6.27474965]
[1753690838375,36.58,191.86,191.83,5.86474965]
[1753690838788,36.58,191.86,191.83,0.06]
[1753690839272,5.21240552,191.85,191.83,0.06]
[1753690841494,5.21240552,191.85,191.83,5.86474965]
[1753690843174,5.21240552,191.85,191.83,0.06]
[1753690843401,5.21240552,191.85,191.83,5.86474965]
[1753690843977,5.89240552,191.85,191.83,0.06]
[1753690846009,5.89240552,191.85,191.83,5.86474965]
[1753690846374,5.21240552,191.85,191.83,5.86474965]
[1753690847116,5.21219859,191.86,191.83,5.86474965]
[1753690847416,36.58,191.85,191.84,5.80474965]
[1753690847572,41.79240552,191.85,191.84,5.80474965]
[1753690849392,0.03,191.89,191.84,11.4273613]
[1753690849598,0.03,191.89,191.88,5.80474965]
[1753690849781,0.03,191.89,191.88,6.08907279]
[1753690849976,0.03,191.89,191.88,5.80474965]
[1753690850405,0.73,191.89,191.86,8.0715]
[1753690850571,5.94131898,191.89,191.87,5.80474965]
[1753690850903,0.03,191.89,191.88,5.80474965]
[1753690853908,0.03,191.89,191.88,23.28375676]
[1753690854405,0.03,191.89,191.88,116.79534733]
[1753690855578,0.03,191.89,191.88,122.60009698]
[1753690856291,0.03,191.93,191.92,42.78468397]
[1753690856493,0.03,191.93,191.92,180.70020719]
[1753690856696,0.03,191.93,191.92,180.58915676]
[1753690857117,9.03359844,191.97,191.93,0.28432314]
[1753690857316,9.03359844,191.97,191.96,6.08907279]
[1753690857615,9.03359844,191.97,191.96,69.60001465]
[1753690858118,9.03359844,191.97,191.96,74.80943327]
[1753690859309,9.03359844,191.97,191.96,179.89411724]
[1753690859516,0.03,192.01,191.98,6.6439]
[1753690859712,0.03,192.01,192.0,28.39418327]
[1753690859903,0.03,192.01,192.0,28.67850641]
[1753690860223,0.03,192.01,192.0,29.08850641]
[1753690861395,0.03,192.01,192.0,34.29683974]
[1753690861790,0.03,192.01,192.0,33.88683974]
[1753690862214,0.03,192.01,192.0,34.29683974]
[1753690862706,0.03,192.05,192.01,0.28432314]
[1753690862904,0.03,192.05,192.04,0.28432314]
[1753690863140,0.03,192.05,192.04,59.43375676]
[1753690864292,0.03,192.05,192.04,59.84375676]
[1753690864511,0.03,192.05,192.04,65.57173008]
[1753690864994,0.03,192.09,192.08,22.58943362]
[1753690865196,0.03,192.09,192.08,59.14943362]
[1753690865720,0.73,192.09,192.08,42.64907279]
[1753690866025,0.03,192.09,192.08,59.43375676]
[1753690866522,0.73,192.09,192.08,42.64907279]
[1753690866817,9.81922886,192.09,192.08,42.64907279]
[1753690867023,9.81922886,192.09,192.05,6.2059]
[1753690867229,9.81922886,192.09,192.06,42.36474965]
[1753690867230,0.7,192.08,192.06,42.36474965]
[1753690867791,5.90640556,192.08,192.06,42.36474965]
[1753690868014,0.7,192.07,192.06,42.36474965]
[1753690868619,0.7,192.07,192.06,5.80474965]
[1753690869626,5.90643515,192.07,192.06,5.80474965]
[1753690871815,5.20616409,192.08,192.06,5.80474965]
[1753690872018,0.7,192.07,192.05,42.34474965]
[1753690872712,0.7,192.07,192.03,5.80474965]
[1753690873921,18.22347182,192.06,192.02,36.54]
[1753690874112,18.22347182,192.06,192.01,5.86474965]
[1753690874422,0.7,192.05,192.01,5.86474965]
[1753690874636,0.7,192.04,192.01,0.06]
[1753690874793,5.20670623,192.06,192.03,5.80474965]
[1753690874995,5.20670623,192.06,192.05,5.80474965]
[1753690876321,5.20643515,192.07,192.05,5.80474965]
[1753690876629,5.90643515,192.07,192.06,5.80474965]
[1753690878102,5.90643515,192.07,192.05,5.80474965]
[1753690878324,0.67,192.06,192.05,5.80474965]
[1753690878621,0.67,192.06,192.04,5.80474965]
[1753690878824,0.67,192.06,192.05,5.80474965]
[1753690879213,5.20643515,192.07,192.05,5.80474965]
[1753690879613,5.87643515,192.07,192.05,5.80474965]
[1753690880615,0.67,192.06,192.05,5.80474965]
[1753690881135,0.67,192.06,192.04,5.80474965]
[1753690881333,0.67,192.05,192.04,5.80474965]
[1753690882110,0.67,192.05,192.03,42.34474965]
[1753690882315,0.67,192.04,192.03,5.80474965]
[1753690882630,5.87670623,192.06,192.03,5.80474965]
[1753690882820,0.67,192.05,192.04,5.80474965]
[1753690884036,0.67,192.05,192.03,5.80474965]
[1753690884213,5.20670623,192.06,192.03,5.80474965]
[1753690884414,0.67,192.04,192.01,0.06]
[1753690884624,5.20751965,192.03,192.01,0.06]
[1753690884813,0.67,192.02,192.01,0.06]
[1753690886947,5.87779085,192.02,192.01,5.86474965]
[1753690887319,5.20779085,192.02,192.01,5.86474965]
[1753690888332,5.20758038,192.03,192.01,5.86474965]
[1753690888535,5.20758038,192.03,192.01,0.06]
[1753690888721,5.87758038,192.03,192.02,5.80474965]
[1753690889045,5.87758038,192.03,192.01,5.86474965]
[1753690889345,5.20732762,192.04,192.02,5.80474965]
[1753690889526,5.20732762,192.04,192.03,5.80474965]
[1753690890633,5.20706888,192.05,192.03,5.80474965]
[1753690890827,5.20706888,192.05,192.04,5.80474965]
[1753690891035,5.23643515,192.07,192.04,5.80474965]
[1753690891243,0.67,192.05,192.02,5.80474965]
[1753690891536,0.67,192.05,192.01,0.06]
[1753690891740,6.47474965,192.05,192.01,0.06]
[1753690891919,0.67,192.04,192.01,0.06]
[1753690892533,24.05727268,192.07,192.01,5.86474965]
[1753690892734,0.67,192.06,192.02,5.80474965]
[1753690892934,0.67,192.05,192.02,5.80474965]
[1753690893239,0.67,192.04,192.02,5.80474965]
[1753690895937,5.20751965,192.03,192.02,5.80474965]
[1753690896856,0.7,192.07,192.02,5.80474965]
[1753690897163,5.20670623,192.06,192.04,5.80474965]
[1753690897755,5.87670623,192.06,192.04,5.80474965]
[1753690899661,0.67,192.05,192.03,5.80474965]
[1753690900330,5.87670623,192.06,192.03,5.80474965]
[1753690900530,0.67,192.05,192.03,5.80474965]
[1753690902354,0.67,192.04,192.02,36.54]
[1753690902537,0.67,192.04,192.01,88.36]
[1753690902538,6.47474965,192.04,192.01,0.06]
[1753690902724,6.47474965,192.03,192.01,0.06]
[1753690902928,0.67,192.03,192.01,0.06]
[1753690903129,0.67,192.02,192.01,0.06]
[1753690904048,5.87779085,192.02,192.01,0.06]
[1753690905757,5.20724848,192.04,192.01,5.86474965]
[1753690906054,0.03,192.07,192.04,17.06900711]
[1753690906256,0.03,192.07,192.06,22.87375676]
[1753690906761,5.20489987,192.13,192.08,26.28432314]
[1753690906928,5.2045908,192.14,192.08,68.60907279]
[1753690907135,5.2045908,192.14,192.08,69.01907279]
[1753690907447,0.67,192.16,192.08,91.00992085]
[1753690907755,5.20430784,192.15,192.08,104.4973705]
[1753690907932,5.87407497,192.16,192.08,104.4973705]
[1753690908350,0.03,192.09,192.08,104.4973705]
[1753690909939,5.92378856,192.17,192.09,0.28432314]
[1753690910142,0.03,192.17,192.1,65.71906861]
[1753690910658,0.03,192.17,192.1,66.12906861]
[1753690911965,0.03,192.17,192.1,71.33469068]
[1753690912157,0.72,192.17,192.1,71.33469068]
[1753690912545,0.69,192.15,192.1,159.22469068]
[1753690912748,0.69,192.15,192.1,158.70412848]
[1753690913346,0.03,192.17,192.11,17.06900711]
[1753690913549,0.03,192.17,192.16,5.80474965]
[1753690913749,0.03,192.17,192.16,42.32474965]
[1753690913962,0.72,192.17,192.16,42.32474965]
[1753690914163,0.03,192.17,192.16,42.32474965]
[1753690914666,0.03,192.17,192.16,42.60907279]
[1753690916040,0.72,192.17,192.16,42.60907279]
[1753690916762,0.72,192.17,192.16,5.80474965]
[1753690916947,0.72,192.17,192.16,42.30474965]
[1753690917343,0.03,192.17,192.16,5.80474965]
[1753690917567,0.72,192.17,192.16,42.30474965]
[1753690918143,0.03,192.17,192.16,42.30474965]
[1753690918969,0.72,192.17,192.16,42.30474965]
[1753690919359,0.03,192.17,192.16,159.52725342]
[1753690920074,0.03,192.17,192.16,117.41325676]
[1753690920264,0.03,192.17,192.16,153.91325676]
[1753690920676,0.03,192.17,192.16,147.67375676]
[1753690921456,0.03,192.17,192.16,153.28775342]
[1753690921672,0.03,192.18,192.17,17.06900711]
[1753690921966,0.03,192.18,192.17,23.80412934]
[1753690922173,0.03,192.18,192.17,29.0078552]
[1753690923275,0.03,192.18,192.17,117.3078552]
[1753690923457,0.03,192.18,192.17,116.78748262]
[1753690923652,0.03,192.18,192.17,116.37748262]
[1753690923857,0.03,192.21,192.17,122.59223227]
[1753690924171,0.03,192.21,192.2,17.09673607]
[1753690924479,0.03,192.21,192.2,53.59673607]
[1753690925561,0.03,192.21,192.2,47.79198642]
[1753690926658,0.03,192.21,192.2,159.6117114]
[1753690926877,0.03,192.21,192.2,159.09142004]
[1753690927471,155.03,192.22,192.21,17.06900711]
[1753690927650,155.03,192.22,192.21,111.17375676]
[1753690927979,155.03,192.22,192.21,111.58375676]
[1753690928650,155.03,192.22,192.21,118.2877997]
[1753690928976,92.03892301,192.22,192.21,118.2877997]
[1753690929147,0.03,192.26,192.25,17.06900711]
[1753690929345,0.03,192.26,192.25,148.1739128]
[1753690929565,0.03,192.26,192.25,147.65375676]
[1753690930876,0.03,192.26,192.25,152.85531722]
[1753690931079,0.03,192.26,192.25,153.26531722]
[1753690931493,0.03,192.27,192.25,153.26531722]
[1753690931790,0.2,192.29,192.28,48.87375676]
[1753690932076,0.2,192.29,192.28,85.35375676]
[1753690932890,0.2,192.3,192.29,0.28432314]
[1753690933179,0.2,192.3,192.29,12.41387028]
[1753690934459,0.2,192.34,192.31,0.28432314]
[1753690934670,0.03,192.35,192.33,22.87375676]
[1753690934981,0.03,192.35,192.34,65.07279595]
[1753690935361,0.03,192.39,192.36,43.06900711]
[1753690935561,0.03,192.39,192.36,85.35375676]
[1753690935772,0.03,192.39,192.36,85.87361535]
[1753690935973,0.89,192.37,192.36,85.35375676]
[1753690936362,0.89,192.37,192.36,48.87375676]
[1753690936560,0.89,192.37,192.36,85.35375676]
[1753690936956,0.89,192.37,192.36,59.35375676]
[1753690940661,0.89,192.37,192.36,17.06900711]
[1753690940985,6.08831574,192.37,192.36,36.46]
[1753690941284,0.89,192.37,192.36,42.40691122]
[1753690941471,0.89,192.37,192.36,42.54907279]
[1753690942667,0.2,192.37,192.36,59.33375676]
[1753690943692,0.2,192.37,192.36,59.85361535]
[1753690943989,0.2,192.37,192.36,65.05220133]
[1753690944694,0.2,192.37,192.36,59.85361535]
[1753690944875,0.2,192.37,192.36,65.05220133]
[1753690945069,0.2,192.37,192.36,69.26630781]
[1753690945281,0.2,192.37,192.36,65.46220133]
[1753690945589,0.2,192.37,192.36,179.76220133]
[1753690945788,0.2,192.37,192.36,179.24234274]
[1753690946370,0.2,192.37,192.36,178.83234274]
[1753690946583,0.89,192.37,192.36,22.58943362]
[1753690946782,0.89,192.37,192.36,59.04943362]
[1753690946981,0.2,192.37,192.36,59.19159519]
[1753690947169,0.2,192.37,192.36,59.33375676]
[1753690947587,0.2,192.37,192.36,64.53234274]